[Event "*** SCC Grand Prix: Titled Tuesday Blitz"]
[Site "Chess.com"]
[Date "2020.07.07"]
[Round "5"]
[White "Orest_Vovk"]
[Black "Firouzja2003"]
[Result "0-1"]
[WhiteElo "2530"]
[BlackElo "3098"]
[TimeControl "180+1"]
[EndTime "10:55:50 PDT"]
[Termination "Firouzja2003 won by resignation"]

1. h4 {[%clk 0:03:00.9]} 1... e5 {[%clk 0:02:59.8]} 2. h5 {[%clk 0:03:01.1]}
2... d5 {[%clk 0:03:00.2]} 3. h6 {[%clk 0:03:01]} 3... Nxh6 {[%clk 0:02:59.8]}
4. d4 {[%clk 0:03:01.1]} 4... exd4 {[%clk 0:02:55.9]} 5. Bxh6 {[%clk 0:03:00.2]}
5... gxh6 {[%clk 0:02:56.1]} 6. Qxd4 {[%clk 0:03:00.4]} 6... Rg8 {[%clk
0:02:56.4]} 7. Nc3 {[%clk 0:03:00.4]} 7... Bg7 {[%clk 0:02:53.7]} 8. Qd3 {[%clk
0:03:00.6]} 8... d4 {[%clk 0:02:47.6]} 9. Ne4 {[%clk 0:02:45.4]} 9... Nc6 {[%clk
0:02:45.3]} 10. O-O-O {[%clk 0:02:40.1]} 10... Qd5 {[%clk 0:02:38.3]} 11. c4
{[%clk 0:01:54.3]} 11... Qa5 {[%clk 0:02:32.6]} 12. a3 {[%clk 0:01:50.6]} 12...
Bf5 {[%clk 0:02:31.8]} 13. Rh5 {[%clk 0:01:42.4]} 13... Kf8 {[%clk 0:01:54]} 14.
g4 {[%clk 0:00:47]} 14... Bxe4 {[%clk 0:01:52.3]} 15. Qxe4 {[%clk 0:00:45.3]}
15... Qa4 {[%clk 0:01:52.5]} 16. Qc2 {[%clk 0:00:42.5]} 16... Qxc2+ {[%clk
0:01:50.2]} 17. Kxc2 {[%clk 0:00:43.4]} 17... Rd8 {[%clk 0:01:47.5]} 18. Nf3
{[%clk 0:00:38.2]} 18... Rd6 {[%clk 0:01:46.2]} 19. Rd5 {[%clk 0:00:31.6]} 19...
Bf6 {[%clk 0:01:40.1]} 20. Rxd6 {[%clk 0:00:31.1]} 20... cxd6 {[%clk 0:01:41]}
21. Bh3 {[%clk 0:00:27.8]} 21... Kg7 {[%clk 0:01:41.2]} 22. b4 {[%clk
0:00:27.3]} 22... Re8 {[%clk 0:01:40.6]} 23. Bf1 {[%clk 0:00:21.8]} 23... Re4
{[%clk 0:01:35.9]} 24. b5 {[%clk 0:00:11]} 24... Na5 {[%clk 0:01:26.6]} 25. Kd3
{[%clk 0:00:10.4]} 25... Rxg4 {[%clk 0:01:26.9]} 26. Bh3 {[%clk 0:00:10.5]}
26... Rf4 {[%clk 0:01:27.1]} 27. Rg1+ {[%clk 0:00:09]} 27... Kf8 {[%clk
0:01:27.6]} 28. Rg4 {[%clk 0:00:08.8]} 28... Rxg4 {[%clk 0:01:25.6]} 29. Bxg4
{[%clk 0:00:09.7]} 29... Nb3 {[%clk 0:01:26.4]} 30. Ke4 {[%clk 0:00:05.5]} 30...
Nc5+ {[%clk 0:01:09.2]} 31. Kd5 {[%clk 0:00:04.8]} 31... d3 {[%clk 0:01:09.9]}
32. exd3 {[%clk 0:00:04.3]} 32... Nxd3 {[%clk 0:01:10.8]} 33. Kxd6 {[%clk
0:00:03.9]} 33... Be7+ {[%clk 0:01:09.2]} 34. Kc7 {[%clk 0:00:03.4]} 34... b6
{[%clk 0:01:09.7]} 35. Kb7 {[%clk 0:00:03.4]} 35... Bxa3 {[%clk 0:01:08.3]} 36.
Kxa7 {[%clk 0:00:03]} 36... Bc5 {[%clk 0:01:08.3]} 37. Kb7 {[%clk 0:00:02.7]}
37... Nxf2 {[%clk 0:01:06.9]} 38. Bc8 {[%clk 0:00:03.5]} 38... Nd3 {[%clk
0:01:04.6]} 39. Nd2 {[%clk 0:00:03]} 39... h5 {[%clk 0:01:01.7]} 40. Ne4 {[%clk
0:00:03.5]} 40... Bd4 {[%clk 0:00:56.8]} 41. Kc6 {[%clk 0:00:03.5]} 41... Ke7
{[%clk 0:00:53.2]} 42. Kd5 {[%clk 0:00:02.2]} 42... Be3 {[%clk 0:00:49.3]} 43.
Kc6 {[%clk 0:00:03.1]} 43... h4 {[%clk 0:00:48.2]} 44. Kd5 {[%clk 0:00:03.1]}
44... h3 {[%clk 0:00:41.4]} 45. Bxh3 {[%clk 0:00:02.2]} 45... Nf4+ {[%clk
0:00:41.3]} 46. Kc6 {[%clk 0:00:02.6]} 46... Nxh3 {[%clk 0:00:42.2]} 47. c5
{[%clk 0:00:03.2]} 47... bxc5 {[%clk 0:00:41.1]} 48. Nxc5 {[%clk 0:00:03.5]}
48... Bxc5 {[%clk 0:00:39.5]} 49. Kxc5 {[%clk 0:00:03.7]} 49... Nf4 {[%clk
0:00:40.2]} 0-1

[Event "*** SCC Grand Prix: Titled Tuesday Blitz"]
[Site "Chess.com"]
[Date "2020.07.07"]
[Round "5"]
[White "kushagramohan"]
[Black "SamuelGhimpu2003"]
[Result "1-0"]
[WhiteElo "2708"]
[BlackElo "2508"]
[TimeControl "180+1"]
[EndTime "10:55:50 PDT"]
[Termination "kushagramohan won by resignation"]

1. e4 {[%clk 0:03:00.9]} 1... e6 {[%clk 0:02:59.7]} 2. d4 {[%clk 0:03:00.6]}
2... d5 {[%clk 0:03:00.6]} 3. Nd2 {[%clk 0:03:01.5]} 3... c5 {[%clk 0:02:59.7]}
4. exd5 {[%clk 0:03:01.7]} 4... Qxd5 {[%clk 0:03:00.6]} 5. Ngf3 {[%clk
0:03:02.1]} 5... cxd4 {[%clk 0:03:01.3]} 6. Bc4 {[%clk 0:03:02.7]} 6... Qd7
{[%clk 0:03:02.1]} 7. O-O {[%clk 0:03:02.9]} 7... Nc6 {[%clk 0:03:03]} 8. Nb3
{[%clk 0:03:01.7]} 8... a6 {[%clk 0:03:03.9]} 9. a4 {[%clk 0:03:02.3]} 9... Nf6
{[%clk 0:03:03.5]} 10. Qe2 {[%clk 0:03:02.7]} 10... Bd6 {[%clk 0:03:03.8]} 11.
Rd1 {[%clk 0:03:03.3]} 11... O-O {[%clk 0:03:04.4]} 12. Nbxd4 {[%clk 0:03:03.3]}
12... e5 {[%clk 0:03:04.9]} 13. Nxc6 {[%clk 0:03:00.9]} 13... Qxc6 {[%clk
0:03:05.8]} 14. Bg5 {[%clk 0:03:01.3]} 14... Bc7 {[%clk 0:03:06.3]} 15. h3
{[%clk 0:02:56.2]} 15... e4 {[%clk 0:02:59]} 16. Nd2 {[%clk 0:02:54.2]} 16...
Re8 {[%clk 0:02:43.9]} 17. Nf1 {[%clk 0:02:43.2]} 17... h6 {[%clk 0:02:29.7]}
18. Bh4 {[%clk 0:02:26]} 18... Be6 {[%clk 0:02:22.6]} 19. Bxe6 {[%clk
0:02:24.4]} 19... Rxe6 {[%clk 0:02:23.5]} 20. b3 {[%clk 0:02:21.5]} 20... Rc8
{[%clk 0:02:21.6]} 21. c4 {[%clk 0:02:20.8]} 21... Nd7 {[%clk 0:02:09.6]} 22.
Bg3 {[%clk 0:02:19.5]} 22... Ne5 {[%clk 0:02:08.9]} 23. Rd4 {[%clk 0:02:14]}
23... f5 {[%clk 0:01:54.2]} 24. Rad1 {[%clk 0:02:12.8]} 24... Rg6 {[%clk
0:01:36.2]} 25. Ne3 {[%clk 0:02:04.6]} 25... Qf6 {[%clk 0:01:21.1]} 26. Nd5
{[%clk 0:01:59.7]} 26... Qg5 {[%clk 0:01:02.7]} 27. h4 {[%clk 0:01:50.3]} 27...
Qd8 {[%clk 0:00:39.6]} 28. Nf4 {[%clk 0:01:27.8]} 28... Qf6 {[%clk 0:00:35.6]}
29. Nxg6 {[%clk 0:01:24.9]} 29... Qxg6 {[%clk 0:00:36.5]} 30. Bxe5 {[%clk
0:01:11.5]} 30... Bxe5 {[%clk 0:00:37.4]} 31. Rd8+ {[%clk 0:01:12]} 31... Rxd8
{[%clk 0:00:38]} 32. Rxd8+ {[%clk 0:01:12.8]} 32... Kh7 {[%clk 0:00:38.9]} 33.
Qd2 {[%clk 0:01:04.6]} 33... Qg4 {[%clk 0:00:29.6]} 34. g3 {[%clk 0:00:50.7]}
34... f4 {[%clk 0:00:20.4]} 35. Qd5 {[%clk 0:00:36.4]} 35... Qf5 {[%clk
0:00:18.8]} 36. Re8 {[%clk 0:00:32]} 36... fxg3 {[%clk 0:00:17.4]} 37. fxg3
{[%clk 0:00:28.5]} 37... e3 {[%clk 0:00:14.3]} 38. Rxe5 {[%clk 0:00:27.2]} 38...
Qf2+ {[%clk 0:00:13.7]} 39. Kh1 {[%clk 0:00:27.4]} 39... Qf1+ {[%clk 0:00:06.1]}
40. Kh2 {[%clk 0:00:27.1]} 40... Qe2+ {[%clk 0:00:05.6]} 41. Qg2 {[%clk
0:00:26.2]} 1-0

[Event "*** SCC Grand Prix: Titled Tuesday Blitz"]
[Site "Chess.com"]
[Date "2020.07.07"]
[Round "5"]
[White "ThePatrick27"]
[Black "VovenRogel"]
[Result "0-1"]
[WhiteElo "2522"]
[BlackElo "2716"]
[TimeControl "180+1"]
[EndTime "10:55:51 PDT"]
[Termination "VovenRogel won by resignation"]

1. d4 {[%clk 0:03:00.9]} 1... Nf6 {[%clk 0:02:57.3]} 2. c4 {[%clk 0:03:00.1]}
2... g6 {[%clk 0:02:57.5]} 3. Nc3 {[%clk 0:03:00]} 3... d5 {[%clk 0:02:57.6]} 4.
cxd5 {[%clk 0:03:00.5]} 4... Nxd5 {[%clk 0:02:58.5]} 5. e4 {[%clk 0:03:01.1]}
5... Nxc3 {[%clk 0:02:58.4]} 6. bxc3 {[%clk 0:03:02]} 6... Bg7 {[%clk
0:02:59.1]} 7. Be3 {[%clk 0:03:01.9]} 7... c5 {[%clk 0:02:58.2]} 8. Nf3 {[%clk
0:03:01.9]} 8... Qa5 {[%clk 0:02:57.5]} 9. Qd2 {[%clk 0:03:01.8]} 9... O-O
{[%clk 0:02:55.4]} 10. Rc1 {[%clk 0:03:00.7]} 10... Nd7 {[%clk 0:02:55.3]} 11.
Bd3 {[%clk 0:02:55.8]} 11... Qc7 {[%clk 0:02:48.4]} 12. O-O {[%clk 0:02:46.7]}
12... e5 {[%clk 0:02:42.3]} 13. Bc4 {[%clk 0:02:16.3]} 13... Nb6 {[%clk
0:02:31]} 14. Bb3 {[%clk 0:02:15.8]} 14... c4 {[%clk 0:02:26.1]} 15. Bd1 {[%clk
0:02:15.7]} 15... Rd8 {[%clk 0:02:06.3]} 16. Qb2 {[%clk 0:01:51.4]} 16... Nd7
{[%clk 0:01:59.7]} 17. Be2 {[%clk 0:01:46.1]} 17... a6 {[%clk 0:01:43.2]} 18. a4
{[%clk 0:01:45.2]} 18... Rb8 {[%clk 0:01:37.7]} 19. dxe5 {[%clk 0:01:31.1]}
19... b5 {[%clk 0:01:36.6]} 20. axb5 {[%clk 0:01:30.9]} 20... axb5 {[%clk
0:01:24.3]} 21. e6 {[%clk 0:01:24.1]} 21... fxe6 {[%clk 0:01:23.7]} 22. Nd4
{[%clk 0:01:24.4]} 22... Nc5 {[%clk 0:01:21.3]} 23. Nxb5 {[%clk 0:01:19]} 23...
Nd3 {[%clk 0:01:17.8]} 24. Bxd3 {[%clk 0:01:04.1]} 24... Rxd3 {[%clk 0:01:18.7]}
25. Nxc7 {[%clk 0:00:55.4]} 25... Rxb2 {[%clk 0:01:17.5]} 26. Ne8 {[%clk
0:00:43]} 26... Be5 {[%clk 0:01:10]} 27. Bd4 {[%clk 0:00:39.1]} 27... Bxd4
{[%clk 0:01:10.2]} 28. cxd4 {[%clk 0:00:40]} 28... Rxd4 {[%clk 0:01:11.1]} 29.
e5 {[%clk 0:00:39.8]} 29... Bb7 {[%clk 0:01:05.6]} 30. Nf6+ {[%clk 0:00:31.8]}
30... Kg7 {[%clk 0:01:04.6]} 31. h4 {[%clk 0:00:25.1]} 31... h6 {[%clk
0:00:39.5]} 32. Rfd1 {[%clk 0:00:24.8]} 32... Rxd1+ {[%clk 0:00:29.7]} 33. Rxd1
{[%clk 0:00:25.7]} 33... Bc6 {[%clk 0:00:29.6]} 34. Rd6 {[%clk 0:00:25]} 34...
Ba4 {[%clk 0:00:23.6]} 35. Rd8 {[%clk 0:00:19.5]} 35... c3 {[%clk 0:00:21.1]}
36. Rc8 {[%clk 0:00:19.1]} 36... c2 {[%clk 0:00:17.3]} 37. Kh2 {[%clk
0:00:19.4]} 37... Rb1 {[%clk 0:00:16.3]} 38. Rc7+ {[%clk 0:00:19.2]} 38... Kf8
{[%clk 0:00:16.4]} 39. h5 {[%clk 0:00:09.4]} 39... gxh5 {[%clk 0:00:14.6]} 0-1

[Event "*** SCC Grand Prix: Titled Tuesday Blitz"]
[Site "Chess.com"]
[Date "2020.07.07"]
[Round "5"]
[White "ega2006"]
[Black "BigAl"]
[Result "0-1"]
[WhiteElo "2356"]
[BlackElo "2507"]
[TimeControl "180+1"]
[EndTime "10:55:55 PDT"]
[Termination "BigAl won by resignation"]

1. c4 {[%clk 0:03:00.9]} 1... Nf6 {[%clk 0:02:59.5]} 2. Nc3 {[%clk 0:02:57.3]}
2... g6 {[%clk 0:03:00]} 3. e4 {[%clk 0:02:57.2]} 3... d6 {[%clk 0:03:00.4]} 4.
d4 {[%clk 0:02:57.5]} 4... Bg7 {[%clk 0:03:01.1]} 5. Be2 {[%clk 0:02:57.8]} 5...
O-O {[%clk 0:03:01.7]} 6. Be3 {[%clk 0:02:58.3]} 6... c5 {[%clk 0:02:59.6]} 7.
e5 {[%clk 0:02:57.7]} 7... Nfd7 {[%clk 0:02:56.3]} 8. dxc5 {[%clk 0:02:53.8]}
8... dxe5 {[%clk 0:02:37.6]} 9. Nf3 {[%clk 0:02:47.8]} 9... Na6 {[%clk
0:02:34.8]} 10. O-O {[%clk 0:02:06.4]} 10... Ndxc5 {[%clk 0:02:21.8]} 11. Qc2
{[%clk 0:02:04.9]} 11... Bf5 {[%clk 0:02:20]} 12. Qc1 {[%clk 0:01:58.5]} 12...
Nd3 {[%clk 0:02:12.5]} 13. Bxd3 {[%clk 0:01:56.4]} 13... Bxd3 {[%clk 0:02:00.2]}
14. Rd1 {[%clk 0:01:54.6]} 14... f5 {[%clk 0:01:50.9]} 15. Nd5 {[%clk
0:01:47.4]} 15... e4 {[%clk 0:01:50.2]} 16. Ng5 {[%clk 0:01:47.2]} 16... Qd6
{[%clk 0:01:26.7]} 17. Nf4 {[%clk 0:01:40.1]} 17... h6 {[%clk 0:01:18.7]} 18.
Nge6 {[%clk 0:01:40]} 18... Rf6 {[%clk 0:01:11.3]} 19. Nxg7 {[%clk 0:01:39.8]}
19... Kxg7 {[%clk 0:01:11.1]} 20. Qc3 {[%clk 0:01:40]} 20... Rd8 {[%clk
0:01:06.7]} 21. Nd5 {[%clk 0:01:19.7]} 21... e5 {[%clk 0:01:06.2]} 22. Nxf6
{[%clk 0:01:18.8]} 22... Qxf6 {[%clk 0:01:06.4]} 23. b3 {[%clk 0:01:15.8]} 23...
b6 {[%clk 0:01:04.6]} 24. f3 {[%clk 0:01:14]} 24... f4 {[%clk 0:00:22.8]} 25.
fxe4 {[%clk 0:01:13.8]} 25... fxe3 {[%clk 0:00:21.8]} 26. Rxd3 {[%clk
0:01:13.7]} 26... Qf2+ {[%clk 0:00:21.9]} 27. Kh1 {[%clk 0:01:14]} 27... e2
{[%clk 0:00:21.5]} 28. Qxe5+ {[%clk 0:01:04]} 28... Kf7 {[%clk 0:00:20.8]} 29.
Rf3+ {[%clk 0:00:23.6]} 29... Qxf3 {[%clk 0:00:20.9]} 30. gxf3 {[%clk 0:00:24]}
30... Rd1+ {[%clk 0:00:21.6]} 31. Kg2 {[%clk 0:00:21.8]} 31... e1=Q {[%clk
0:00:20.9]} 32. Qf4+ {[%clk 0:00:20.3]} 32... Ke6 {[%clk 0:00:17.9]} 33. Qg4+
{[%clk 0:00:19.5]} 33... Ke5 {[%clk 0:00:17.5]} 34. Rxd1 {[%clk 0:00:16.6]}
34... Qxd1 {[%clk 0:00:17.2]} 35. Qxg6 {[%clk 0:00:16.9]} 35... Qe2+ {[%clk
0:00:16.7]} 36. Kg3 {[%clk 0:00:16.7]} 36... Qe1+ {[%clk 0:00:17.4]} 37. Kg2
{[%clk 0:00:16.9]} 37... Qd2+ {[%clk 0:00:16.6]} 38. Kg3 {[%clk 0:00:17.2]}
38... Qg5+ {[%clk 0:00:17]} 39. Qxg5+ {[%clk 0:00:16.6]} 39... hxg5 {[%clk
0:00:17.9]} 40. h4 {[%clk 0:00:16.7]} 40... gxh4+ {[%clk 0:00:18.1]} 41. Kxh4
{[%clk 0:00:17.6]} 41... Kf4 {[%clk 0:00:18.7]} 42. a3 {[%clk 0:00:17.4]} 42...
Nc5 {[%clk 0:00:19]} 43. b4 {[%clk 0:00:17.3]} 43... Nd3 {[%clk 0:00:19.3]} 44.
Kh3 {[%clk 0:00:15.2]} 44... Kxf3 {[%clk 0:00:19.6]} 45. e5 {[%clk 0:00:13.9]}
45... Nxe5 {[%clk 0:00:18.5]} 46. c5 {[%clk 0:00:14.3]} 46... b5 {[%clk
0:00:19]} 0-1

[Event "*** SCC Grand Prix: Titled Tuesday Blitz"]
[Site "Chess.com"]
[Date "2020.07.07"]
[Round "5"]
[White "GameOverBro"]
[Black "Bastiandash"]
[Result "1-0"]
[WhiteElo "2491"]
[BlackElo "2327"]
[TimeControl "180+1"]
[EndTime "10:55:58 PDT"]
[Termination "GameOverBro won by resignation"]

1. e4 {[%clk 0:03:00.9]} 1... c5 {[%clk 0:02:48.5]} 2. Ne2 {[%clk 0:03:00.2]}
2... e6 {[%clk 0:02:48.9]} 3. d4 {[%clk 0:02:56.9]} 3... cxd4 {[%clk 0:02:49.8]}
4. Nxd4 {[%clk 0:02:57.5]} 4... a6 {[%clk 0:02:46]} 5. c4 {[%clk 0:02:56.6]}
5... Nf6 {[%clk 0:02:45.6]} 6. Bd3 {[%clk 0:02:56]} 6... Qc7 {[%clk 0:02:41.8]}
7. Nc3 {[%clk 0:02:51]} 7... Nc6 {[%clk 0:02:38]} 8. Be3 {[%clk 0:02:47]} 8...
Ne5 {[%clk 0:02:33.4]} 9. Rc1 {[%clk 0:02:45.3]} 9... Nxd3+ {[%clk 0:02:28.7]}
10. Qxd3 {[%clk 0:02:44.5]} 10... Ng4 {[%clk 0:02:29.6]} 11. b3 {[%clk
0:01:58.3]} 11... Nxe3 {[%clk 0:02:17.6]} 12. fxe3 {[%clk 0:01:48.7]} 12... Be7
{[%clk 0:01:53.4]} 13. O-O {[%clk 0:01:46.4]} 13... O-O {[%clk 0:01:53.2]} 14.
Rf3 {[%clk 0:01:39.5]} 14... Bf6 {[%clk 0:01:36]} 15. Rxf6 {[%clk 0:01:33.7]}
15... gxf6 {[%clk 0:01:35.7]} 16. Rf1 {[%clk 0:01:33.9]} 16... Qe5 {[%clk
0:01:20.9]} 17. Nf3 {[%clk 0:00:55.7]} 17... Qh5 {[%clk 0:01:16.5]} 18. Na4
{[%clk 0:00:51.9]} 18... b5 {[%clk 0:01:06.4]} 19. Nb6 {[%clk 0:00:39.3]} 19...
Rb8 {[%clk 0:01:03.6]} 20. Qd4 {[%clk 0:00:39.4]} 20... bxc4 {[%clk 0:00:46.6]}
21. bxc4 {[%clk 0:00:40.3]} 21... Qa5 {[%clk 0:00:44.6]} 22. c5 {[%clk
0:00:38.7]} 22... Qb5 {[%clk 0:00:20.3]} 23. Nh4 {[%clk 0:00:30.3]} 23... Qe2
{[%clk 0:00:12.2]} 24. Rf2 {[%clk 0:00:16.9]} 24... Qe1+ {[%clk 0:00:11.5]} 25.
Rf1 {[%clk 0:00:16.9]} 25... Qxh4 {[%clk 0:00:12.4]} 26. Rxf6 {[%clk 0:00:15.6]}
26... Qe1+ {[%clk 0:00:11.8]} 27. Rf1 {[%clk 0:00:15.4]} 27... Qh4 {[%clk
0:00:11.5]} 28. Rf4 {[%clk 0:00:14.4]} 28... Qh6 {[%clk 0:00:09.3]} 29. e5
{[%clk 0:00:14]} 29... f6 {[%clk 0:00:09.1]} 30. exf6 {[%clk 0:00:13.2]} 30...
Rb7 {[%clk 0:00:05.8]} 31. Qe5 {[%clk 0:00:09.6]} 31... Kf7 {[%clk 0:00:03.9]}
32. Rg4 {[%clk 0:00:08.7]} 32... Qg6 {[%clk 0:00:02.7]} 33. Rxg6 {[%clk
0:00:08.4]} 33... hxg6 {[%clk 0:00:03.6]} 34. Nc4 {[%clk 0:00:08.4]} 34... Rb1+
{[%clk 0:00:02.1]} 35. Kf2 {[%clk 0:00:08.4]} 35... d6 {[%clk 0:00:02.6]} 36.
Nxd6+ {[%clk 0:00:08.7]} 36... Kg8 {[%clk 0:00:03.2]} 37. f7+ {[%clk 0:00:08.3]}
37... Kh7 {[%clk 0:00:03.4]} 38. Qf6 {[%clk 0:00:07.5]} 38... Rb2+ {[%clk
0:00:03.6]} 39. Kg3 {[%clk 0:00:07.5]} 39... Bb7 {[%clk 0:00:03.5]} 40. Qxb2
{[%clk 0:00:07.2]} 1-0

[Event "*** SCC Grand Prix: Titled Tuesday Blitz"]
[Site "Chess.com"]
[Date "2020.07.07"]
[Round "5"]
[White "Oligan22"]
[Black "Maaikee"]
[Result "1-0"]
[WhiteElo "2474"]
[BlackElo "2290"]
[TimeControl "180+1"]
[EndTime "10:55:59 PDT"]
[Termination "Oligan22 won by resignation"]

1. e4 {[%clk 0:03:00.9]} 1... e6 {[%clk 0:02:59]} 2. d4 {[%clk 0:03:00.3]} 2...
d5 {[%clk 0:02:57.8]} 3. Nd2 {[%clk 0:03:00.9]} 3... c5 {[%clk 0:02:56.4]} 4.
exd5 {[%clk 0:03:01.2]} 4... Qxd5 {[%clk 0:02:57.2]} 5. Ngf3 {[%clk 0:03:01]}
5... cxd4 {[%clk 0:02:56.1]} 6. Bc4 {[%clk 0:03:01.1]} 6... Qd7 {[%clk
0:02:51.8]} 7. Nb3 {[%clk 0:02:54.4]} 7... Nc6 {[%clk 0:02:49.8]} 8. Nfxd4
{[%clk 0:02:51.9]} 8... Nxd4 {[%clk 0:02:47.8]} 9. Nxd4 {[%clk 0:02:46.1]} 9...
a6 {[%clk 0:02:46.3]} 10. Be3 {[%clk 0:02:42.2]} 10... Nf6 {[%clk 0:02:05.7]}
11. Qe2 {[%clk 0:02:41.8]} 11... b5 {[%clk 0:01:56.5]} 12. Nxb5 {[%clk
0:02:33.9]} 12... Bb7 {[%clk 0:01:46.5]} 13. Nd4 {[%clk 0:02:21.3]} 13... Bd6
{[%clk 0:01:19.6]} 14. f3 {[%clk 0:02:13.3]} 14... O-O {[%clk 0:01:15]} 15.
O-O-O {[%clk 0:02:13.2]} 15... Rfc8 {[%clk 0:01:10.2]} 16. Bb3 {[%clk
0:02:08.1]} 16... Nd5 {[%clk 0:00:55.6]} 17. Kb1 {[%clk 0:01:55.4]} 17... a5
{[%clk 0:00:48.6]} 18. a4 {[%clk 0:01:51.3]} 18... Ba6 {[%clk 0:00:41]} 19. Nb5
{[%clk 0:01:50.8]} 19... Nxe3 {[%clk 0:00:22.3]} 20. Qxe3 {[%clk 0:01:46.8]}
20... Bxb5 {[%clk 0:00:21.8]} 21. axb5 {[%clk 0:01:47.7]} 21... a4 {[%clk
0:00:22.3]} 22. Ba2 {[%clk 0:01:42.9]} 22... Qc7 {[%clk 0:00:20.4]} 23. Qe4
{[%clk 0:01:17.8]} 23... a3 {[%clk 0:00:17.8]} 24. Qc6 {[%clk 0:00:48.3]} 24...
Qxc6 {[%clk 0:00:14.2]} 25. bxc6 {[%clk 0:00:49.2]} 25... Rxc6 {[%clk
0:00:13.5]} 26. bxa3 {[%clk 0:00:33.7]} 26... Rb8+ {[%clk 0:00:11.5]} 27. Bb3
{[%clk 0:00:32]} 27... Bxa3 {[%clk 0:00:11.6]} 28. Rd7 {[%clk 0:00:28.7]} 28...
Bb4 {[%clk 0:00:09.5]} 29. Rhd1 {[%clk 0:00:27.1]} 29... g6 {[%clk 0:00:07.8]}
30. Rd8+ {[%clk 0:00:25.9]} 30... Rxd8 {[%clk 0:00:08.3]} 31. Rxd8+ {[%clk
0:00:26.6]} 31... Kg7 {[%clk 0:00:09]} 32. c4 {[%clk 0:00:27]} 32... Bc3 {[%clk
0:00:07.8]} 33. Kc2 {[%clk 0:00:26.8]} 33... Bf6 {[%clk 0:00:08]} 34. Ra8 {[%clk
0:00:26.2]} 34... Rc5 {[%clk 0:00:07.5]} 35. Kd3 {[%clk 0:00:25.6]} 35... g5
{[%clk 0:00:06]} 36. Ra7 {[%clk 0:00:22.8]} 36... Kg6 {[%clk 0:00:06.2]} 37. Rb7
{[%clk 0:00:22.6]} 37... h5 {[%clk 0:00:06.2]} 38. h3 {[%clk 0:00:22]} 38... Be5
{[%clk 0:00:04]} 39. g4 {[%clk 0:00:21.2]} 39... hxg4 {[%clk 0:00:04]} 40. hxg4
{[%clk 0:00:22.1]} 40... Kf6 {[%clk 0:00:04.6]} 41. Ra7 {[%clk 0:00:20.1]} 41...
Rc8 {[%clk 0:00:03.8]} 42. Ra5 {[%clk 0:00:18.9]} 42... Ke7 {[%clk 0:00:02.2]}
43. Rxe5 {[%clk 0:00:18.1]} 1-0

[Event "*** SCC Grand Prix: Titled Tuesday Blitz"]
[Site "Chess.com"]
[Date "2020.07.07"]
[Round "5"]
[White "dosto07"]
[Black "Love_craft"]
[Result "0-1"]
[WhiteElo "2201"]
[BlackElo "2423"]
[TimeControl "180+1"]
[EndTime "10:55:59 PDT"]
[Termination "Love_craft won on time"]

1. e4 {[%clk 0:02:26.4]} 1... g6 {[%clk 0:02:59.7]} 2. d4 {[%clk 0:02:25.5]}
2... Bg7 {[%clk 0:03:00]} 3. Nc3 {[%clk 0:02:26]} 3... d6 {[%clk 0:03:00.4]} 4.
Nf3 {[%clk 0:02:26.3]} 4... Nf6 {[%clk 0:03:00.5]} 5. Be2 {[%clk 0:02:26.4]}
5... O-O {[%clk 0:03:00.6]} 6. O-O {[%clk 0:02:26.9]} 6... Nbd7 {[%clk 0:03:01]}
7. Re1 {[%clk 0:02:24.5]} 7... e5 {[%clk 0:03:01.1]} 8. Bc4 {[%clk 0:02:19.8]}
8... c6 {[%clk 0:02:59.3]} 9. a4 {[%clk 0:02:18.9]} 9... Nh5 {[%clk 0:02:38.3]}
10. Bg5 {[%clk 0:02:15.6]} 10... Bf6 {[%clk 0:02:37]} 11. Bh6 {[%clk 0:02:11.5]}
11... Bg7 {[%clk 0:02:36.9]} 12. Bxg7 {[%clk 0:02:05.8]} 12... Kxg7 {[%clk
0:02:35.7]} 13. dxe5 {[%clk 0:01:57.9]} 13... dxe5 {[%clk 0:02:35.9]} 14. Qd6
{[%clk 0:01:54.3]} 14... Qf6 {[%clk 0:02:29.4]} 15. Rad1 {[%clk 0:01:44.9]}
15... Nf4 {[%clk 0:01:12.2]} 16. Bf1 {[%clk 0:01:30.3]} 16... Nh3+ {[%clk
0:01:00.6]} 17. gxh3 {[%clk 0:01:26]} 17... Qxf3 {[%clk 0:01:00.5]} 18. Re3
{[%clk 0:01:06.9]} 18... Qh5 {[%clk 0:00:48.5]} 19. Be2 {[%clk 0:01:02.6]} 19...
Qg5+ {[%clk 0:00:39.3]} 20. Rg3 {[%clk 0:01:00.7]} 20... Qf6 {[%clk 0:00:39.4]}
21. Bg4 {[%clk 0:00:47.8]} 21... Qxd6 {[%clk 0:00:32.2]} 22. Rxd6 {[%clk
0:00:47.4]} 22... Nc5 {[%clk 0:00:22.3]} 23. b4 {[%clk 0:00:36.4]} 23... Ne6
{[%clk 0:00:21.7]} 24. Bxe6 {[%clk 0:00:32.5]} 24... Bxe6 {[%clk 0:00:22.6]} 25.
Rgd3 {[%clk 0:00:29.6]} 25... Kf6 {[%clk 0:00:21.9]} 26. Kg2 {[%clk 0:00:21.7]}
26... Ke7 {[%clk 0:00:21.8]} 27. Kg3 {[%clk 0:00:17.7]} 27... Rad8 {[%clk
0:00:20.4]} 28. Rxd8 {[%clk 0:00:16.9]} 28... Rxd8 {[%clk 0:00:21.3]} 29. f4
{[%clk 0:00:15.5]} 29... f6 {[%clk 0:00:18.2]} 30. h4 {[%clk 0:00:13.3]} 30...
Rxd3+ {[%clk 0:00:16.1]} 31. cxd3 {[%clk 0:00:12.7]} 31... b6 {[%clk 0:00:15.6]}
32. a5 {[%clk 0:00:11.2]} 32... bxa5 {[%clk 0:00:14.9]} 33. bxa5 {[%clk
0:00:11.1]} 33... Kd6 {[%clk 0:00:15.3]} 34. h5 {[%clk 0:00:09.7]} 34... gxh5
{[%clk 0:00:13.6]} 35. fxe5+ {[%clk 0:00:09.2]} 35... Kxe5 {[%clk 0:00:11.8]}
36. Ne2 {[%clk 0:00:06.8]} 36... f5 {[%clk 0:00:11.2]} 37. Kf3 {[%clk
0:00:06.4]} 37... fxe4+ {[%clk 0:00:11]} 38. dxe4 {[%clk 0:00:06.5]} 38... Bg4+
{[%clk 0:00:11]} 39. Ke3 {[%clk 0:00:06.1]} 39... Bxe2 {[%clk 0:00:11.9]} 40.
Kxe2 {[%clk 0:00:06.3]} 40... Kxe4 {[%clk 0:00:12.3]} 0-1